bitfinex-derivatives/quotes_BNBF0:USTF0_20250608
["timestamp","ask_amount","ask_price","bid_price","bid_amount"]
[1749340801789,1.11082454,650.72,650.14,0.637]
[1749340801990,1.11082454,650.71,650.14,0.637]
[1749340802187,1.11082454,650.7,650.14,0.637]
[1749340802388,1.11082454,650.69,650.14,0.637]
[1749340802589,1.11082454,650.68,650.14,0.637]
[1749340802791,1.11082454,650.67,650.14,0.637]
[1749340802991,1.11082454,650.66,650.14,0.637]
[1749340803191,1.11082454,650.65,650.14,0.637]
[1749340803392,1.11099531,650.64,650.14,0.637]
[1749340803688,1.11099531,650.63,650.14,0.637]
[1749340803894,0.603,650.79,650.14,0.637]
[1749340803895,1.11099531,650.62,650.14,0.637]
[1749340804089,0.603,650.79,650.14,0.637]
[1749340804288,1.11099291,650.78,650.14,0.637]
[1749340804495,1.11099291,650.77,650.14,0.637]
[1749340804694,1.11099291,650.76,650.14,0.637]
[1749340804894,1.11099291,650.75,650.14,0.637]
[1749340805094,1.11099291,650.74,650.14,0.637]
[1749340805295,1.11099291,650.73,650.14,0.637]
[1749340805491,1.11099291,650.72,650.14,0.637]
[1749340805796,1.11099291,650.71,650.14,0.637]
[1749340805991,1.11099291,650.7,650.14,0.637]
[1749340806295,1.11099291,650.69,650.14,0.637]
[1749340806594,1.11099291,650.68,650.14,0.637]
[1749340806795,1.11099291,650.67,650.14,0.637]
[1749340807092,1.11099291,650.66,650.14,0.637]
[1749340807295,1.11099291,650.65,650.14,0.637]
[1749340807492,1.11099291,650.64,650.14,0.637]
[1749340807691,1.11099291,650.63,650.14,0.637]
[1749340807891,1.11099291,650.62,650.14,0.637]
[1749340808093,1.11099291,650.61,650.14,0.637]
[1749340808291,1.15073802,650.81,650.14,0.637]
[1749340808498,2.34873676,650.8,650.14,0.637]
[1749340808796,1.11115305,650.79,650.14,0.637]
[1749340809093,1.11115305,650.78,650.14,0.637]
[1749340809293,1.11115305,650.77,650.14,0.637]
[1749340809497,1.11115305,650.76,650.14,0.637]
[1749340809796,1.11115305,650.75,650.13,0.427]
[1749340809997,1.11115305,650.74,650.13,0.427]
[1749340810194,1.11115305,650.73,650.13,0.427]
[1749340810393,1.11115305,650.72,650.13,0.427]
[1749340810592,1.11115305,650.71,650.13,0.427]
[1749340810897,1.11115305,650.7,650.13,0.427]
[1749340811094,1.11115305,650.69,650.13,0.427]
[1749340811294,1.11115305,650.68,650.13,0.427]
[1749340811497,1.11115305,650.67,650.13,0.427]
[1749340811695,1.11115305,650.66,650.13,0.427]
[1749340811898,1.11115305,650.65,650.13,0.427]
[1749340812099,1.11115305,650.64,650.13,0.427]
[1749340812295,0.632,650.68,650.13,0.427]
[1749340812496,1.11042774,650.67,650.13,0.427]
[1749340812697,1.11042774,650.66,650.14,0.634]
[1749340812897,1.11042774,650.65,650.14,0.634]
[1749340813098,1.11042774,650.64,650.14,0.634]
[1749340813301,0.632,650.68,650.14,0.634]
[1749340813503,1.11042456,650.67,650.14,0.634]
[1749340813797,1.11042456,650.66,650.14,0.634]
[1749340813997,1.11042456,650.65,650.14,0.634]
[1749340814302,1.11042456,650.64,650.14,0.634]
[1749340814502,1.11042456,650.63,650.14,0.634]
[1749340814797,1.11042456,650.62,650.14,0.634]
[1749340814999,1.11042456,650.61,650.14,0.634]
[1749340815300,0.632,650.68,650.14,0.634]
[1749340815497,1.11009539,650.67,650.14,0.634]
[1749340815701,1.11009539,650.66,650.14,0.634]
[1749340816002,1.11009539,650.65,650.15,0.427]
[1749340816198,0.632,650.68,650.15,0.427]
[1749340816199,1.11009539,650.64,650.15,0.427]
[1749340816398,1.11009539,650.63,650.15,0.427]
[1749340816602,1.11009539,650.62,650.15,0.427]
[1749340816802,1.11009539,650.61,650.15,0.427]
[1749340817102,0.632,650.68,650.15,0.427]
[1749340817300,1.11000428,650.67,650.15,0.427]
[1749340817499,1.11000428,650.66,650.15,0.427]
[1749340817697,1.11000428,650.65,650.15,0.427]
[1749340817897,1.11000428,650.64,650.15,0.427]
[1749340818099,1.11000428,650.63,650.15,0.427]
[1749340818303,1.11000428,650.62,650.15,0.427]
[1749340818600,0.632,650.68,650.15,0.427]
[1749340818601,1.11000428,650.61,650.15,0.427]
[1749340818806,0.632,650.68,650.15,0.427]
[1749340819003,1.11435454,650.67,650.15,0.427]
[1749340819202,1.11435454,650.66,650.15,0.427]
[1749340819404,1.11435454,650.65,650.15,0.427]
[1749340819702,1.11435454,650.64,650.15,0.427]
[1749340819902,1.11435454,650.63,650.15,0.427]
[1749340820106,1.11435454,650.62,650.15,0.427]
[1749340820302,1.11435454,650.61,650.15,0.427]
[1749340820601,0.632,650.68,650.15,0.427]
[1749340820805,1.11417347,650.67,650.15,0.427]
[1749340821101,1.11417347,650.66,650.15,0.427]
[1749340821301,1.11417347,650.65,650.15,0.427]
[1749340821506,1.11417347,650.64,650.15,0.427]
[1749340821706,1.11417347,650.63,650.15,0.427]
[1749340821905,1.11417347,650.62,650.15,0.427]
[1749340822202,1.11417347,650.61,650.15,0.427]
[1749340822400,0.632,650.68,650.15,0.427]
[1749340822603,1.11414673,650.67,650.15,0.427]
[1749340822803,1.11414673,650.66,650.15,0.427]
[1749340823006,1.11414673,650.65,650.15,0.427]
[1749340823202,1.11414673,650.64,650.15,0.427]
[1749340823402,1.11414673,650.63,650.15,0.427]
[1749340823602,0.632,650.68,650.15,0.427]
[1749340823804,1.1134658,650.67,650.15,0.427]
[1749340824108,1.1134658,650.66,650.15,0.427]
[1749340824402,1.1134658,650.65,650.15,0.427]
[1749340824608,1.1134658,650.64,650.15,0.427]
[1749340824804,1.1134658,650.63,650.15,0.427]
[1749340825005,0.632,650.68,650.15,0.427]
[1749340825204,1.11340945,650.67,650.15,0.427]
[1749340825404,1.11340945,650.66,650.15,0.427]
[1749340825605,1.11340945,650.65,650.15,0.427]
[1749340825806,1.11340945,650.64,650.15,0.427]
[1749340826002,1.11340945,650.63,650.15,0.427]
[1749340826203,0.632,650.68,650.15,0.427]
[1749340826405,1.1140686,650.67,650.15,0.427]
[1749340826606,1.1140686,650.66,650.15,0.427]
[1749340826907,1.1140686,650.65,650.15,0.427]
[1749340827103,1.1140686,650.64,650.15,0.427]
[1749340827410,1.1140686,650.63,650.15,0.427]
[1749340827609,1.23675016,650.88,650.15,0.427]
[1749340827906,2.35105507,650.87,650.15,0.427]
[1749340828108,2.35104893,650.86,650.15,0.427]
[1749340828308,2.35104893,650.85,650.15,0.427]
[1749340828508,2.35104893,650.84,650.15,0.427]
[1749340828711,2.35104893,650.83,650.15,0.427]
[1749340828910,2.35104893,650.82,650.15,0.427]
[1749340829210,1.11431219,650.81,650.15,0.427]
[1749340829508,1.11431219,650.8,650.15,0.427]
[1749340829704,1.11431219,650.79,650.15,0.427]
[1749340829905,1.11431219,650.78,650.15,0.427]
[1749340830109,1.11431219,650.77,650.15,0.427]
[1749340830411,1.11431219,650.76,650.15,0.427]
[1749340830610,1.11431219,650.75,650.15,0.427]
[1749340830807,1.11431219,650.74,650.15,0.427]
[1749340831006,1.11431219,650.73,650.15,0.427]
[1749340831207,1.11431219,650.72,650.15,0.427]
[1749340831506,1.11431219,650.71,650.15,0.427]
[1749340831711,1.11431219,650.7,650.15,0.427]
[1749340831907,1.11431219,650.69,650.15,0.427]
[1749340832111,1.11431219,650.68,650.15,0.427]
[1749340832308,1.11431219,650.67,650.15,0.427]
[1749340832506,1.11431219,650.66,650.15,0.427]
[1749340832710,0.708,650.8,650.15,0.427]
[1749340832711,1.11431219,650.65,650.15,0.427]
[1749340832911,1.11431219,650.64,650.15,0.427]
[1749340833112,0.708,650.8,650.15,0.427]
[1749340833412,1.11457465,650.79,650.16,0.783]
[1749340833708,1.11457465,650.78,650.16,0.783]
[1749340833909,1.11457465,650.77,650.16,0.783]
[1749340834108,1.11457465,650.76,650.16,0.783]
[1749340834305,0.708,650.8,650.16,0.783]
[1749340834306,1.11457465,650.75,650.16,0.783]
[1749340834507,1.11457465,650.74,650.16,0.783]
[1749340834710,1.11457465,650.73,650.16,0.783]
[1749340834910,1.11457465,650.72,650.16,0.783]
[1749340835107,1.11457465,650.71,650.16,0.783]
[1749340835311,1.11457465,650.7,650.16,0.783]
[1749340835608,1.11457465,650.69,650.16,0.783]
[1749340835806,1.11457465,650.68,650.16,0.783]
[1749340836008,1.11457465,650.67,650.16,0.783]
[1749340836209,1.11457465,650.66,650.16,0.783]
[1749340836412,1.11457465,650.65,650.16,0.783]
[1749340836712,1.11457465,650.64,650.16,0.783]
[1749340836913,0.708,650.8,650.16,0.783]
[1749340837113,1.11471885,650.79,650.16,0.783]
[1749340837313,1.11471885,650.78,650.16,0.783]
[1749340837615,1.11471885,650.77,650.16,0.783]
[1749340837809,1.11471885,650.76,650.16,0.783]
[1749340838009,1.11471885,650.75,650.16,0.783]
[1749340838209,1.11471885,650.74,650.16,0.783]
[1749340838414,1.11471885,650.73,650.16,0.783]
[1749340838610,1.11471885,650.72,650.16,0.783]
[1749340838813,1.11471885,650.71,650.16,0.783]
[1749340839012,1.11471885,650.7,650.16,0.783]
[1749340839215,1.11471885,650.69,650.16,0.783]
[1749340839411,1.11471885,650.68,650.16,0.783]
[1749340839611,1.11471885,650.67,650.16,0.783]
[1749340839815,1.11471885,650.66,650.16,0.783]
[1749340840015,1.11471885,650.65,650.16,0.783]
[1749340840213,1.11471885,650.64,650.16,0.783]
[1749340840512,0.708,650.8,650.16,0.783]
[1749340840712,1.11441877,650.79,650.16,0.783]
[1749340840916,1.11441877,650.78,650.16,0.783]
[1749340841118,1.11441877,650.77,650.16,0.783]
[1749340841319,1.11441877,650.76,650.16,0.783]
[1749340841517,1.11441877,650.75,650.16,0.783]
[1749340841718,1.11441877,650.74,650.16,0.783]
[1749340841915,1.11441877,650.73,650.16,0.783]
[1749340842115,1.11441877,650.72,650.16,0.783]
[1749340842315,1.11441877,650.71,650.16,0.783]
[1749340842518,1.11441877,650.7,650.16,0.783]
[1749340842719,1.11441877,650.69,650.16,0.783]
[1749340842918,1.11441877,650.68,650.16,0.783]
[1749340843218,1.11441877,650.67,650.16,0.783]
[1749340843417,1.11441877,650.66,650.16,0.783]
[1749340843715,1.11441877,650.65,650.16,0.783]
[1749340843920,1.11441877,650.64,650.16,0.783]
[1749340844220,0.708,650.8,650.16,0.783]
[1749340844520,1.11429473,650.79,650.16,0.783]
[1749340844718,1.11429473,650.78,650.16,0.783]
[1749340845020,1.11429473,650.77,650.16,0.783]
[1749340845218,1.11429473,650.76,650.16,0.783]
[1749340845417,1.11429473,650.75,650.16,0.783]
[1749340845718,1.11429473,650.74,650.16,0.783]
[1749340845921,1.11429473,650.73,650.17,0.43]
[1749340846220,1.11429473,650.72,650.17,0.43]
[1749340846420,1.11429473,650.71,650.17,0.43]
[1749340846720,1.11429473,650.7,650.17,0.43]
[1749340846921,1.11429473,650.69,650.17,0.43]
[1749340847115,1.11429473,650.68,650.17,0.43]
[1749340847316,1.11429473,650.67,650.17,0.43]
[1749340847516,1.11429473,650.66,650.17,0.43]
[1749340847816,1.11429473,650.65,650.17,0.43]
[1749340848021,1.11429473,650.64,650.17,0.43]
[1749340848320,1.15073802,650.85,650.17,0.43]
[1749340848519,1.64629974,650.84,650.17,0.43]
[1749340848718,1.11429974,650.83,650.17,0.43]
[1749340848917,1.11429974,650.82,650.17,0.43]
[1749340849220,1.11429974,650.81,650.17,0.43]
[1749340849420,1.11429974,650.8,650.17,0.43]
[1749340849624,1.11429974,650.79,650.17,0.43]
[1749340849922,1.11429974,650.78,650.17,0.43]
[1749340850219,1.11429974,650.77,650.17,0.43]
[1749340850428,1.11429974,650.76,650.17,0.43]
[1749340850624,1.11429974,650.75,650.17,0.43]
[1749340850921,1.11429974,650.74,650.17,0.43]
[1749340851123,1.11429974,650.73,650.17,0.43]
[1749340851323,1.11429974,650.72,650.17,0.43]
[1749340851623,1.11429974,650.71,650.17,0.43]
[1749340851820,1.11429974,650.7,650.17,0.43]
[1749340852121,1.11429974,650.69,650.17,0.43]
[1749340852319,1.11429974,650.68,650.17,0.43]
[1749340852621,1.11429974,650.67,650.17,0.43]
[1749340852822,1.11429974,650.66,650.17,0.43]
[1749340853020,1.11429974,650.65,650.17,0.43]
[1749340853221,0.532,650.84,650.17,0.43]
[1749340853424,1.11425824,650.83,650.17,0.43]
[1749340853621,1.11425824,650.82,650.17,0.43]
[1749340853824,1.11425824,650.81,650.17,0.43]
[1749340854022,1.11425824,650.8,650.17,0.43]
[1749340854222,1.11425824,650.79,650.17,0.43]
[1749340854527,1.11425824,650.78,650.17,0.43]
[1749340854823,1.11425824,650.77,650.17,0.43]
[1749340855026,1.11425824,650.76,650.17,0.43]
[1749340855222,1.11425824,650.75,650.17,0.43]
[1749340855523,1.11425824,650.74,650.17,0.43]
[1749340855723,1.11425824,650.73,650.17,0.43]
[1749340855922,1.11425824,650.72,650.17,0.43]
[1749340856127,1.11425824,650.71,650.17,0.43]
[1749340856426,0.532,650.84,650.17,0.43]
[1749340856427,1.11425824,650.7,650.17,0.43]
[1749340856724,1.11425824,650.69,650.17,0.43]
[1749340857027,1.11425824,650.68,650.17,0.43]
[1749340857223,1.11425824,650.67,650.17,0.43]
[1749340857422,1.11425824,650.66,650.17,0.43]
[1749340857622,1.11425824,650.65,650.17,0.43]
[1749340857824,1.68273802,650.84,650.17,0.43]
[1749340858124,1.11432534,650.83,650.17,0.43]
[1749340858323,1.11432534,650.82,650.17,0.43]
[1749340858522,1.11432534,650.81,650.17,0.43]
[1749340858723,1.11432534,650.8,650.17,0.43]
[1749340858923,1.11432534,650.79,650.17,0.43]
[1749340859128,1.11432534,650.78,650.17,0.43]
[1749340859322,0.532,650.84,650.17,0.43]
[1749340859323,1.11432534,650.77,650.17,0.43]
[1749340859627,1.11432534,650.76,650.17,0.43]
[1749340859828,1.11432534,650.75,650.17,0.43]
[1749340860124,1.11432534,650.74,650.16,0.783]
[1749340860323,1.11432534,650.73,650.16,0.783]
[1749340860523,1.11432534,650.72,650.16,0.783]
[1749340860723,1.11432534,650.71,650.16,0.783]
[1749340860924,1.11432534,650.7,650.16,0.783]
[1749340861127,1.11432534,650.69,650.16,0.783]
[1749340861324,1.11432534,650.68,650.16,0.783]
[1749340861526,1.11432534,650.67,650.16,0.783]
[1749340861829,1.11432534,650.66,650.16,0.783]
[1749340862028,1.11432534,650.65,650.16,0.783]
[1749340862226,1.11432534,650.64,650.16,0.783]
[1749340862524,0.532,650.84,649.72,3.83742239]
[1749340862525,1.7702768,650.84,649.72,3.83742239]
[1749340862724,1.11443557,650.83,649.72,3.83742239]
[1749340862928,1.11443557,650.82,649.72,3.83742239]
[1749340863226,1.11443557,650.81,649.72,3.83742239]
[1749340863527,1.11443557,650.8,649.73,3.83742239]
[1749340863724,1.11443557,650.79,649.73,3.83742239]
[1749340863926,1.11443557,650.78,649.74,0.43]
[1749340864126,1.11443557,650.77,649.74,0.43]
[1749340864325,1.11443557,650.76,649.74,0.43]
[1749340864531,1.11443557,650.75,649.74,0.43]
[1749340864730,1.11443557,650.74,649.74,0.43]
[1749340864931,1.11446541,650.73,649.74,0.43]
[1749340865129,1.11446541,650.72,649.74,0.43]
[1749340865332,1.11446541,650.71,649.74,0.43]
[1749340865628,1.11446541,650.7,649.74,0.43]
[1749340865829,1.11446541,650.69,649.74,0.43]
[1749340866034,1.11446541,650.68,649.75,0.869]
[1749340866330,1.11446541,650.67,649.75,0.869]
[1749340866530,1.11446541,650.66,649.75,0.869]
[1749340866831,1.11446541,650.65,649.75,0.869]
[1749340867031,1.11446541,650.64,649.75,0.869]
[1749340867332,0.532,650.84,649.75,0.869]
[1749340867529,1.11452571,650.83,649.75,0.869]
[1749340867729,1.11452571,650.82,649.75,0.869]
[1749340867930,1.11452571,650.81,649.75,0.869]
[1749340868233,1.11452571,650.8,649.75,0.869]
[1749340868528,1.11452571,650.79,649.75,4.70642239]
[1749340868733,1.11452571,650.78,649.75,4.70642239]
[1749340868933,1.11452571,650.77,649.75,4.70642239]
[1749340869230,1.11452571,650.76,649.75,4.70642239]
[1749340869534,1.11452571,650.75,649.8,3.83742239]
[1749340869733,1.11452571,650.74,649.8,3.83742239]
[1749340869930,1.11452571,650.73,649.83,3.83742239]
[1749340870128,1.11452571,650.72,649.83,3.83742239]
[1749340870332,1.11452571,650.71,649.82,3.83742239]
[1749340870530,1.11452571,650.7,649.82,3.83742239]
[1749340870733,1.11452571,650.69,649.82,3.83742239]
[1749340870932,1.11452571,650.68,649.82,3.83742239]
[1749340871135,1.11452571,650.67,649.84,3.83742239]
[1749340871334,1.11452571,650.66,649.84,3.83742239]
[1749340871536,1.11452571,650.65,649.89,3.83742239]
[1749340871734,0.549,650.66,649.89,3.83742239]
[1749340871934,1.11462898,650.65,649.89,3.83742239]
[1749340872136,0.549,650.66,649.89,3.83742239]
[1749340872332,1.11461062,650.65,649.89,3.83742239]
[1749340872537,0.549,650.66,649.89,3.83742239]
[1749340872737,1.11460462,650.65,649.89,3.83742239]
[1749340872936,0.549,650.66,649.89,3.83742239]
[1749340873137,1.11460006,650.65,649.89,3.83742239]
[1749340873334,0.549,650.66,649.89,3.83742239]
[1749340873538,1.11460082,650.65,649.89,3.83742239]
[1749340873735,0.549,650.66,649.89,3.83742239]
[1749340873937,1.11460245,650.65,649.89,3.83742239]
[1749340874137,0.549,650.66,649.89,3.83742239]
[1749340874334,1.11460245,650.65,649.89,3.83742239]
[1749340874538,0.549,650.66,649.89,3.83742239]
[1749340874739,1.11459978,650.65,649.89,3.83742239]
[1749340875039,0.549,650.66,649.89,3.83742239]
[1749340875236,1.11459978,650.65,649.89,3.83742239]
[1749340875440,0.549,650.66,649.89,3.83742239]
[1749340875638,1.11459567,650.65,649.89,3.83742239]
[1749340875938,0.549,650.66,649.89,3.83742239]
[1749340876136,1.11459745,650.65,649.89,3.83742239]
[1749340876342,0.549,650.66,649.89,3.83742239]
[1749340876642,1.1145393,650.65,649.89,3.83742239]
[1749340876942,0.549,650.66,649.89,3.83742239]
[1749340877142,1.11454149,650.65,649.89,3.83742239]
[1749340877339,0.549,650.66,649.89,3.83742239]
[1749340877643,1.11455531,650.65,649.89,3.83742239]
[1749340877843,0.549,650.66,649.89,3.83742239]
[1749340878043,1.11455185,650.65,649.89,3.83742239]
[1749340878343,0.549,650.66,649.89,3.83742239]
[1749340878644,1.11454658,650.65,649.89,3.83742239]
[1749340878841,0.549,650.66,649.89,3.83742239]
[1749340879041,1.11454658,650.65,649.89,3.83742239]
[1749340879245,0.549,650.66,649.86,3.83742239]
[1749340879442,1.11454881,650.65,649.9,0.43]
[1749340879642,0.549,650.66,649.9,0.43]
[1749340879846,1.11453238,650.65,649.9,0.43]
[1749340880142,0.549,650.66,649.9,0.43]
[1749340880343,1.11453158,650.65,649.9,0.43]
[1749340880646,0.549,650.66,649.9,0.43]
[1749340880847,1.11453304,650.65,649.91,0.646]
[1749340881044,0.549,650.66,649.91,0.646]
[1749340881244,1.11453455,650.65,649.91,0.646]
[1749340881546,0.549,650.66,649.91,0.646]
[1749340881744,1.11405145,650.65,649.91,0.646]
[1749340882047,0.549,650.66,649.91,0.646]
[1749340882245,1.11405207,650.65,649.91,0.646]
[1749340882448,0.549,650.66,649.91,0.646]
[1749340882649,1.11404987,650.65,649.91,0.646]
[1749340882944,0.549,650.66,649.91,0.646]
[1749340883145,1.11404812,650.65,649.91,0.646]
[1749340883348,1.11404812,650.64,649.91,0.646]
[1749340883549,0.2675359,650.48,649.91,0.646]
[1749340883946,0.549,650.66,649.91,0.646]
[1749340884147,1.11405213,650.65,649.91,0.646]
[1749340884346,1.11405213,650.64,649.91,0.646]
[1749340884547,0.549,650.66,649.91,0.646]
[1749340884752,0.26753796,650.46,649.91,0.646]
[1749340886952,0.549,650.66,649.91,0.646]
[1749340887152,1.11403077,650.65,649.91,0.646]
[1749340887350,0.2675359,650.48,649.91,0.646]
[1749340889958,0.549,650.66,649.91,0.646]
[1749340890158,0.2675359,650.4,649.91,0.646]
[1749340890558,0.549,650.66,649.91,0.646]
[1749340890754,1.11386644,650.65,649.91,0.646]
[1749340890956,1.11386644,650.64,649.91,0.646]
[1749340891159,0.549,650.66,649.91,0.646]
[1749340891455,0.26753693,650.47,649.91,0.646]
[1749340893160,1.11386175,650.65,649.91,0.646]
[1749340893360,0.549,650.66,649.91,0.646]
[1749340893658,1.11386133,650.65,649.91,0.646]
[1749340893856,0.549,650.66,649.91,0.646]
[1749340894161,1.11386381,650.65,649.91,0.646]
[1749340894359,0.2675359,650.48,649.91,0.646]
[1749340895962,1.23766707,650.84,649.91,0.646]
[1749340896160,2.2643108,650.83,649.91,0.646]
[1749340896462,0.26751739,650.4,649.91,0.646]
[1749340896663,1.11373389,650.81,649.91,0.646]
[1749340896861,1.11373389,650.8,649.91,0.646]
[1749340897060,1.11373389,650.79,649.91,0.646]
[1749340897260,1.11373389,650.78,649.91,0.646]
[1749340897460,1.11373389,650.77,649.91,0.646]
[1749340897663,1.11373389,650.76,649.91,0.646]
[1749340897960,0.26752459,650.56,649.91,0.646]
[1749340898965,1.15057691,650.83,649.91,0.646]
[1749340899166,1.11369526,650.82,649.91,0.646]
[1749340899366,0.26751842,650.4,649.91,0.646]
[1749340899563,1.11369526,650.8,649.91,0.646]
[1749340899762,1.11369526,650.79,649.91,0.646]
[1749340899965,1.11369526,650.78,649.91,0.646]
[1749340900162,1.11369526,650.77,649.91,0.646]
[1749340900464,1.11369526,650.76,649.91,0.646]
[1749340900662,0.26752459,650.56,649.91,0.646]
[1749340901965,0.825,650.82,649.91,0.646]
[1749340902170,1.1136969,650.81,649.91,0.646]
[1749340902366,0.26751945,650.4,649.91,0.646]
[1749340902567,1.1136969,650.79,649.91,0.646]
[1749340902865,0.825,650.82,649.91,0.646]
[1749340902866,1.1136969,650.78,649.91,0.646]
[1749340903065,1.1136969,650.77,649.91,0.646]
[1749340903270,1.1136969,650.76,649.91,0.646]
[1749340903465,1.1136969,650.75,649.91,0.646]
[1749340903666,1.1136969,650.74,649.91,0.646]
[1749340903866,0.26752665,650.55,649.91,0.646]
[1749340904972,0.825,650.82,649.91,0.646]
[1749340905268,0.26751945,650.4,649.91,0.646]
[1749340905572,1.11358059,650.8,649.91,0.646]
[1749340905869,1.11358059,650.79,649.92,0.43]
[1749340906068,1.11358059,650.78,649.92,0.43]
[1749340906267,1.11358059,650.77,649.92,0.43]
[1749340906472,1.11358059,650.76,649.92,0.43]
[1749340906766,1.11358059,650.75,649.92,0.43]
[1749340906971,0.26753282,650.56,649.92,0.43]
[1749340907974,0.825,650.82,649.92,0.43]
[1749340908274,0.26752665,650.41,649.92,0.43]
[1749340908674,1.11357705,650.79,649.92,0.43]
[1749340908972,1.11357705,650.78,649.93,0.745]
[1749340909174,1.11357705,650.77,649.93,0.745]
[1749340909372,1.11357705,650.76,649.93,0.745]
[1749340909574,1.11357705,650.75,649.93,0.745]
[1749340909871,1.11357705,650.74,649.93,0.745]
[1749340910075,0.26752459,650.55,649.93,0.745]
[1749340911076,0.825,650.82,649.93,0.745]
[1749340911273,1.11358465,650.81,649.93,0.745]
[1749340911472,0.26751739,650.4,649.93,0.745]
[1749340911677,1.11358465,650.79,649.93,0.745]
[1749340911976,1.11358465,650.78,649.93,0.745]
[1749340912277,1.11358465,650.77,649.93,0.745]
[1749340912577,1.11358465,650.76,649.93,0.745]
[1749340912772,1.11358465,650.75,649.93,0.745]
[1749340912973,0.26752253,650.57,649.93,0.745]
[1749340913972,1.15057691,650.84,649.93,0.745]
[1749340914175,1.11346916,650.83,649.93,0.745]
[1749340914370,0.26751534,650.62,649.93,0.745]
[1749340914871,0.644,650.61,649.93,0.745]
[1749340918380,0.26753899,650.45,649.93,0.745]
[1749340919976,0.644,650.61,649.93,0.745]
[1749340921382,0.26753899,650.45,649.93,0.745]
[1749340925989,0.644,650.61,649.93,0.745]
[1749340927390,0.26753899,650.45,649.93,0.745]
[1749340929090,0.644,650.61,649.93,0.745]
[1749340929391,0.26753899,650.4,649.93,0.745]
[1749340931998,0.644,650.61,649.93,0.745]
[1749340933292,0.26753899,650.45,649.93,0.745]
[1749340935197,0.644,650.61,649.93,0.745]
[1749340935497,0.26753899,650.4,649.93,0.745]
[1749340937093,0.26753899,650.4,649.64,0.26753899]
[1749340937298,0.26753899,650.4,649.65,0.30785807]
[1749340937994,0.644,650.61,649.65,0.30785807]
[1749340938501,0.644,650.61,649.66,0.43]
[1749340938699,0.644,650.61,649.66,0.73785333]
[1749340939497,0.26756676,650.4,649.66,0.73785333]
[1749340940105,0.26756676,650.4,649.67,0.835]
[1749340941098,0.644,650.61,649.67,0.835]
[1749340941300,1.11124918,650.6,649.67,0.835]
[1749340941500,1.11124918,650.59,649.67,0.835]
[1749340941704,1.11124918,650.58,649.67,0.835]
[1749340942003,1.11124918,650.57,649.67,0.835]
[1749340942301,1.11124918,650.56,649.67,0.835]
[1749340942504,0.26758939,650.36,649.67,0.835]
[1749340947111,1.10599757,650.59,649.67,0.835]
[1749340947112,0.644,650.61,649.67,0.835]
[1749340947300,0.26758836,650.3,649.67,0.835]
[1749340947606,0.644,650.61,649.67,0.835]
[1749340947907,1.10548402,650.6,649.67,0.835]
[1749340948108,0.644,650.61,649.67,0.835]
[1749340948304,1.10548402,650.6,649.67,0.835]
[1749340948511,0.2675863,650.38,649.67,0.835]
[1749340950006,1.10526138,650.6,649.67,0.835]
[1749340950309,0.2675863,650.3,649.67,0.835]
[1749340950710,0.644,650.61,649.68,3.83742239]
[1749340951608,0.26758527,650.38,649.72,3.83742239]
[1749340952413,0.26758527,650.38,649.67,0.835]
[1749340953208,0.26758527,650.38,649.66,0.30785333]
[1749340953209,0.644,650.61,649.66,0.30785333]
[1749340953610,0.2675863,650.3,649.66,0.30785333]
[1749340953808,0.644,650.61,649.66,0.30785333]
[1749340954909,0.26759968,650.38,649.66,0.30785333]